fUSD/lending_fUSD_20260221
["ID","MTS","AMOUNT","RATE_DAILY","PERIOD"]
[406230786,1771639841687,-596.47,0.00017999,2]
[406230787,1771639841696,-596.47,0.00017999,2]
[406230788,1771639841705,-596.47,0.00017999,2]
[406230789,1771639841714,-596.47,0.00017999,2]
[406230790,1771639841723,-596.47,0.00017999,2]
[406230791,1771639841733,-596.47,0.00017999,2]
[406230792,1771639841742,-596.47,0.00017999,2]
[406230793,1771639841750,-596.47,0.00017999,2]
[406230794,1771639841759,-596.49841681,0.00017999,2]
[406230795,1771639841768,-1097.63,0.00017999,2]
[406230796,1771639841777,-1097.63,0.00017999,2]
[406230797,1771639841786,-1097.63,0.00017999,2]
[406230798,1771639841795,-1097.63,0.00017999,2]
[406230799,1771639841804,-1097.63,0.00017999,2]
[406230800,1771639841814,-1097.63,0.00017999,2]
[406230801,1771639841823,-1097.63,0.00017999,2]
[406230802,1771639841833,-1097.63,0.00017999,2]
[406230803,1771639841842,-1097.63,0.00017999,2]
[406230804,1771639841851,-1097.63,0.00017999,2]
[406230805,1771639841860,-1097.63,0.00017999,2]
[406230806,1771639841869,-1097.63,0.00017999,2]
[406230807,1771639841878,-1097.63,0.00017999,2]
[406230808,1771639841887,-1097.63,0.00017999,2]
[406230809,1771639841896,-1097.73377918,0.00017999,2]
[406230810,1771639841905,-300.0,0.00017999,2]
[406230811,1771639841914,-500.0,0.00017999,2]
[406230812,1771639841923,-500.0,0.00017999,2]
[406230813,1771639841932,-500.0,0.00017999,2]
[406230814,1771639841941,-223.02771451,0.00017999,2]
[406230815,1771639841950,-300.0,0.00017999,2]
[406230816,1771639841959,-300.0,0.00017999,2]
[406230817,1771639841969,-666.0,0.00017999,2]
[406230818,1771639841979,-296.5196054,0.00017999,2]
[406230819,1771639841987,-1481551.12911491,0.00018,2]
[406230820,1771639842007,-3057781.4992302,0.00018,2]
[406230821,1771639842016,-1000.0,0.00018,2]
[406230822,1771639842025,-1000.0,0.00018,2]
[406230823,1771639842034,-1000.0,0.00018,2]
[406230824,1771639842043,-1000.0,0.00018,2]
[406230825,1771639842052,-1000.0,0.00018,2]
[406230826,1771639842062,-1000.0,0.00018,2]
[406230827,1771639842071,-1000.0,0.00018,2]
[406230828,1771639842080,-1000.0,0.00018,2]
[406230829,1771639842089,-1000.0,0.00018,2]
[406230830,1771639842098,-1000.0,0.00018,2]
[406230831,1771639842108,-1000.0,0.00018,2]
[406230832,1771639842122,-1000.0,0.00018,2]
[406230833,1771639842131,-1000.0,0.00018,2]
[406230834,1771639842140,-1000.0,0.00018,2]
[406230835,1771639842150,-1000.0,0.00018,2]
[406230836,1771639842159,-1000.0,0.00018,2]
[406230837,1771639842168,-1000.0,0.00018,2]
[406230838,1771639842177,-1000.0,0.00018,2]
[406230839,1771639842188,-1000.0,0.00018,2]
[406230840,1771639842197,-1000.0,0.00018,2]
[406230841,1771639842206,-1000.0,0.00018,2]
[406230842,1771639842215,-234.17994429,0.00018,2]
[406230843,1771639842224,-200.0,0.00018,2]
[406230844,1771639842234,-151.0,0.00018,2]
[406230845,1771639842243,-200.0,0.00018,2]
[406230846,1771639842252,-151.0,0.00018,2]
[406230847,1771639842262,-151.0,0.00018,2]
[406230848,1771639842271,-151.0,0.00018,2]
[406230849,1771639842281,-484.69006529,0.00018,2]
[406230850,1771639842291,-151.16721437,0.00018,2]
[406230851,1771639842300,-217.06,0.00018089,2]
[406230852,1771639842309,-1178.22,0.0001811,2]
[406230853,1771639842318,-187.78006525,0.00018139,2]
[406230854,1771639842327,-1997.0,0.00018147,2]
[406230855,1771639842337,-350.0,0.00018174,2]
[406230856,1771639842346,-200.0,0.0001818,2]
[406230857,1771639842355,-200.0,0.0001818,2]
[406230858,1771639842365,-2000.0,0.000182,2]
[406230859,1771639842374,-1997.0,0.00018203,2]
[406230860,1771639842383,-1178.22,0.00018254,2]
[406230861,1771639842393,-200.0,0.00018326,2]
[406230862,1771639842403,-166.66,0.00018351,2]
[406230863,1771639842411,-200.0,0.00018362,2]
[406230864,1771639842420,-200.0,0.00018362,2]
[406230865,1771639842429,-300.0,0.0001852,2]
[406230866,1771639842439,-300.0,0.0001852,2]
[406230867,1771639842447,-300.0,0.0001852,2]
[406230868,1771639842456,-670.00643429,0.0001852,2]
[406230869,1771639842465,-274.57468569,0.00018521,2]
[406230870,1771639842474,-1000.0,0.00018521,2]
[406230871,1771639842483,-503.59958659,0.00018521,2]
[406230872,1771639842492,-500.0,0.00018521,2]
[406230873,1771639842501,-1000.0,0.00018521,2]
[406230874,1771639842510,-1000.0,0.00018521,2]
[406230875,1771639842519,-1000.0,0.00018521,2]
[406230876,1771639842528,-587.30044948,0.00018521,2]
[406230877,1771639842537,-1000.0,0.00018521,2]
[406230878,1771639842546,-1000.0,0.00018521,2]
[406230879,1771639842555,-1000.0,0.00018521,2]
[406230880,1771639842564,-1000.0,0.00018521,2]
[406230881,1771639842573,-1000.0,0.00018521,2]
[406230882,1771639842583,-1000.0,0.00018521,2]
[406230883,1771639842592,-1000.0,0.00018521,2]
[406230884,1771639842601,-185.07244677,0.00018521,2]
[406230885,1771639842610,-1007.71776397,0.00018521,2]
[406230886,1771639842619,-1000.0,0.00018521,2]
[406230887,1771639842628,-1000.0,0.00018521,2]
[406230888,1771639842637,-1000.0,0.00018521,2]
[406230889,1771639842647,-1000.0,0.00018521,2]
[406230890,1771639842656,-283.08205997,0.00018521,2]
[406230891,1771639842665,-1000.0,0.00018521,2]
[406230892,1771639842674,-1000.0,0.00018521,2]
[406230893,1771639842684,-1003.48190913,0.00018521,2]
[406230894,1771639842693,-503.94295672,0.00018521,2]
[406230895,1771639842702,-1000.0,0.00018521,2]
[406230896,1771639842711,-1000.0,0.00018521,2]
[406230897,1771639842720,-1000.0,0.00018521,2]
[406230898,1771639842729,-1037.78469138,0.00018521,2]
[406230899,1771639842739,-1000.0,0.00018521,2]
[406230900,1771639842748,-1000.0,0.00018521,2]
[406230901,1771639842757,-1000.0,0.00018521,2]
[406230902,1771639842766,-1000.0,0.00018521,2]
[406230903,1771639842775,-1000.0,0.00018521,2]
[406230904,1771639842784,-500.2370004,0.00018521,2]
[406230905,1771639842793,-247.26,0.00018523,2]
[406230906,1771639842802,-200.0,0.00018545,2]
[406230907,1771639842811,-200.0,0.00018545,2]
[406230908,1771639842820,-1997.0,0.00018557,2]
[406230909,1771639842829,-352.3681187,0.00018576,2]
[406230910,1771639842838,-1997.0,0.00018581,2]
[406230911,1771639842847,-1997.0,0.00018622,2]
[406230912,1771639842856,-1997.0,0.00018629,2]
[406230913,1771639842865,-188.0,0.0001865,2]
[406230914,1771639842874,-188.0,0.00018652,2]
[406230915,1771639842883,-188.0,0.00018655,2]
[406230917,1771639842892,-155.0,0.00018655,2]
[406230918,1771639842901,-188.0,0.00018655,2]
[406230919,1771639842910,-188.0,0.00018655,2]
[406230920,1771639842918,-1997.0,0.0001866,2]
[406230921,1771639842927,-188.0,0.0001868,2]
[406230922,1771639842936,-188.0,0.0001868,2]
[406230923,1771639842945,-194.72792766,0.00018687,2]
[406230924,1771639842954,-151.12,0.000187,2]
[406230925,1771639842963,-200.0,0.00018731,2]
[406230926,1771639842972,-200.0,0.00018731,2]
[406230927,1771639842981,-200.0,0.00018874,2]
[406230928,1771639842990,-6758.0275,0.000189,2]
[406230929,1771639842999,-1121.88763465,0.00018904,2]
[406230930,1771639843008,-205.98054201,0.00019,2]
[406230931,1771639843018,-169.72282459,0.00019,2]
[406230932,1771639843027,-300.0,0.00019067,2]
[406230933,1771639843039,-300.0,0.00019067,2]
[406230934,1771639843056,-524.16891164,0.00019068,2]
[406230935,1771639843066,-1500.0,0.00019068,2]
[406230936,1771639843075,-1554.47948282,0.00019068,2]
[406230937,1771639843084,-1500.0,0.00019068,2]
[406230938,1771639843093,-1500.0,0.00019068,2]
[406230939,1771639843243,-638.51463776,0.00019068,2]
[406230940,1771639843271,-1500.0,0.00019068,2]
[406230941,1771639843282,-1500.0,0.00019068,2]
[406230942,1771639843291,-1500.0,0.00019068,2]
[406230943,1771639843300,-1642.14839907,0.00019068,2]
[406230944,1771639843309,-1500.0,0.00019068,2]
[406230945,1771639843319,-1500.0,0.00019068,2]
[406230946,1771639843328,-812.10690056,0.00019068,2]
[406230947,1771639843340,-687.89309944,0.00019068,2]
[406230948,1771639843350,-1500.0,0.00019068,2]
[406230949,1771639843359,-523.66444873,0.00019068,2]
[406230950,1771639843368,-1500.0,0.00019068,2]
[406230951,1771639843378,-1013.0179552,0.00019068,2]
[406230952,1771639843387,-1500.0,0.00019068,2]
[406230953,1771639843396,-1500.0,0.00019068,2]
[406230954,1771639843405,-1005.39516463,0.00019068,2]
[406230955,1771639843415,-1500.0,0.00019068,2]
[406230956,1771639843425,-1500.0,0.00019068,2]
[406230957,1771639843435,-1500.0,0.00019068,2]
[406230958,1771639843444,-1500.0,0.00019068,2]
[406230959,1771639843453,-1500.0,0.00019068,2]
[406230960,1771639843462,-201.93286099,0.00019235,2]
[406230961,1771639843471,-1004.03429537,0.00019294,2]
[406230962,1771639843480,-247.26,0.00019405,2]
[406230963,1771639843490,-200.0,0.00019422,2]
[406230964,1771639843499,-350.0,0.00019542,2]
[406230965,1771639843508,-306.44122053,0.00019615,2]
[406230966,1771639843517,-300.0,0.00019615,2]
[406230967,1771639843527,-925.73028095,0.00019616,2]
[406230968,1771639843536,-1006.37533601,0.00019616,2]
[406230969,1771639843546,-2000.0,0.00019616,2]
[406230970,1771639843555,-2000.0,0.00019616,2]
[406230971,1771639843564,-2000.0,0.00019616,2]
[406230972,1771639843573,-2000.0,0.00019616,2]
[406230973,1771639843582,-695.75451845,0.00019616,2]
[406230974,1771639843592,-2000.0,0.00019616,2]
[406230975,1771639843601,-1537.38620138,0.00019616,2]
[406230976,1771639843611,-504.51288769,0.00019616,2]
[406230977,1771639843620,-2000.0,0.00019616,2]
[406230978,1771639843629,-2000.0,0.00019616,2]
[406230979,1771639843638,-2000.0,0.00019616,2]
[406230980,1771639843648,-2000.0,0.00019616,2]
[406230981,1771639843657,-2000.0,0.00019616,2]
[406230982,1771639843666,-608.28522248,0.00019616,2]
[406230983,1771639843675,-831.98120945,0.00019616,2]
[406230984,1771639843685,-1600.0,0.00019663,2]
[406230985,1771639843694,-2351.0,0.00019688,2]
[406230986,1771639843703,-166.66,0.0001975,2]
[406230987,1771639843713,-233.36100338,0.00019783,2]
[406230988,1771639843722,-1000.0,0.00019813,2]
[406230989,1771639843731,-200.0,0.0001997,2]
[406230990,1771639843741,-193.39340842,0.0002,2]
[406230991,1771639843750,-1085.49049828,0.0002,30]
[406230992,1771639843759,-1000.0,0.0002,2]
[406230993,1771639843768,-300.0,0.00020163,2]
[406230994,1771639843777,-2500.0,0.00020164,2]
[406230995,1771639843786,-1504.93005999,0.00020164,2]
[406230996,1771639843795,-2176.2904195,0.00020164,2]
[406230997,1771639843804,-286.50564093,0.00020164,2]
[406230998,1771639843813,-2500.0,0.00020164,2]
[406230999,1771639843823,-785.87086745,0.00020164,2]
[406231000,1771639843832,-2523.04817443,0.00020164,2]
[406231001,1771639843841,-2500.0,0.00020164,2]
[406231002,1771639843850,-1003.50480423,0.00020164,2]
[406231003,1771639843859,-2500.0,0.00020164,2]
[406231004,1771639843869,-247.26,0.00020287,2]
[406231005,1771639843878,-747.4523085,0.0002029,2]
[406231006,1771639843887,-154.62367826,0.0002041,30]
[406231007,1771639843896,-309.71,0.00020467,30]
[406231008,1771639843904,-200.0,0.00020518,2]
[406231009,1771639843914,-1004.03429537,0.00020704,2]
[406231010,1771639843923,-193.46943505,0.00020712,2]
[406231011,1771639843932,-1038.05786744,0.00020712,2]
[406231012,1771639843941,-3000.0,0.00020712,2]
[406231013,1771639843950,-1224.77533486,0.00020712,2]
[406231014,1771639843959,-300.0,0.00020778,2]
[406231015,1771639843968,-110338.33249132,0.00020779,2]
[406231016,1771639843978,-395.15,0.00020782,2]
[406231017,1771639843987,-166.7791533,0.00020804,2]
[406231018,1771639843996,-583.41462606,0.0002085,7]
[406231019,1771639844005,-1325.78489837,0.000209,30]
[406231020,1771639844014,-523.0,0.00021,2]
[406231021,1771639844024,-200.0,0.00021066,2]
[406231022,1771639844033,-247.26,0.00021169,2]
[406231023,1771639844043,-170.44,0.00021183,2]
[406231024,1771639844052,-371.66575309,0.0002126,2]
[406231025,1771639844064,-3128.33424691,0.0002126,2]
[406231026,1771639844073,-234.11,0.000214,2]
[406231027,1771639844083,-300.0,0.00021446,2]
[406231028,1771639844093,-72947.73962907,0.00021447,2]
[406231029,1771639844104,-325.47403664,0.00021447,2]
[406231030,1771639844119,-340.29,0.00021447,2]
[406231031,1771639844130,-2290.38582166,0.00021447,2]
[406231032,1771639844142,-2277.0831524,0.00021447,2]
[406231033,1771639844154,-20954.84126331,0.00021447,2]
[406231034,1771639844193,-212.22497024,0.000179,2]
[406231035,1771639844202,-500.0,0.00017973,2]
[406231036,1771639844211,-1000.0,0.00018521,2]
[406231037,1771639844221,-400.46275857,0.00019068,2]
[406231038,1771639844234,-1099.53724143,0.00019068,2]
[406231039,1771639844243,-2000.0,0.00019616,2]
[406231040,1771639844252,-1012.05777546,0.00020164,2]
[406231041,1771639844261,-1911.44931934,0.00021447,2]
[406231042,1771639844275,-2357.61,0.00021447,2]
[406231043,1771639844285,-5642.70196642,0.00021447,2]
[406231044,1771639845824,-504.41788599,0.00018431,2]
[406231045,1771639845836,-1219.55937606,0.00018431,2]
[406231046,1771639845878,-273.02273795,0.00018431,2]
[406231047,1771639845891,-6517.30722956,0.00021447,2]
[406231048,1771639845902,-9367.18785245,0.00021447,2]
[406231049,1771639845933,-9042.12892365,0.00021447,2]
[406231050,1771639845943,-302.33442874,0.00021447,2]
[406231051,1771639845952,-200.0,0.00021614,2]
[406231052,1771639845962,-3292.0,0.00021626,2]
[406231053,1771639845971,-1600.0,0.00021629,2]
[406231054,1771639845980,-1000.0,0.00021795,2]
[406231055,1771639845990,-4000.0,0.00021808,2]
[406231056,1771639845999,-5000.0,0.00021918,2]
[406231057,1771639846009,-150.0,0.00021957,2]
[406231058,1771639846019,-150.0,0.00021957,2]
[406231059,1771639846028,-300.0,0.00021999,2]
[406231060,1771639846038,-657.44,0.00022,7]
[406231061,1771639846048,-20923.74,0.00022,2]
[406231062,1771639846057,-247.26,0.00022051,2]
[406231063,1771639846067,-200.0,0.00022162,2]
[406231064,1771639846076,-5287.19,0.00022174,2]
[406231065,1771639846085,-153.66415509,0.00022216,2]
[406231066,1771639846098,-29893.684522,0.00022219,2]
[406231067,1771639846107,-264.24611022,0.00022221,2]
[406231068,1771639846120,-201.52591091,0.00022242,2]
[406231069,1771639846130,-4500.0,0.00022356,2]
[406231070,1771639846140,-152.47539331,0.00022505,2]
[406231071,1771639846149,-202.8553137,0.00022505,2]
[406231072,1771639846161,-250.6318594,0.0002271,2]
[406231073,1771639846171,-4774.77226061,0.00022904,2]
[406231074,1771639846180,-247.26,0.00022934,2]
[406231075,1771639846191,-169.21923237,0.00023,3]
[406231076,1771639846201,-151.0,0.00023,7]
[406231077,1771639846211,-151.0,0.00023288,7]
[406231078,1771639846220,-454.349621,0.00023586,30]
[406231079,1771639846230,-1600.0,0.00023595,2]
[406231080,1771639846240,-150.0,0.00023672,12]
[406231081,1771639846249,-204.0,0.00023672,12]
[406231083,1771639846259,-233.0,0.00023672,12]
[406231084,1771639846268,-158.0,0.00023672,12]
[406231085,1771639846278,-2136.222267,0.00023755,2]
[406231086,1771639846291,-2472.777733,0.00023755,2]
[406231087,1771639846303,-395.15,0.00023762,2]
[406231088,1771639846315,-1000.0,0.00023776,2]
[406231089,1771639846325,-247.26,0.00023816,2]
[406231090,1771639846336,-151.0,0.00024164,7]
[406231091,1771639846345,-20923.74,0.000242,2]
[406231092,1771639846354,-500.0,0.00024292,2]
[406231093,1771639846364,-309.71,0.00024496,30]
[406231094,1771639846374,-148.23783125,0.00024564,2]
[406231095,1771639846385,-22.20216875,0.00024564,2]
[406231096,1771639846395,-254.43,0.000246,2]
[406231097,1771639846404,-1000.0,0.00024658,2]
[406231098,1771639846414,-165.82,0.00024658,2]
[406231099,1771639846423,-150.0,0.00024658,2]
[406231100,1771639846433,-657.44,0.000247,7]
[406231101,1771639846443,-1687.9043886,0.00024711,2]
[406231124,1771640811879,-10000.01,0.0001004,2]
[406231125,1771640812071,-10000.01,0.0001004,2]
[406231126,1771640812165,-10000.01,0.0001004,2]
[406231127,1771640820834,-467.32336048,0.0001004,2]
[406231128,1771640820861,-3439.76111308,0.00013,2]
[406231129,1771640820874,-467.32336048,0.00013,2]
[406231130,1771640820885,-1718.5176924,0.00013,2]
[406231131,1771640860212,-263.58,0.00016,2]
[406231132,1771640860238,-284.0,0.00016,2]
[406231133,1771640860265,-517.0,0.00016,2]
[406231134,1771640860292,-2870.85,0.000161,2]
[406231135,1771640860305,-263.58,0.000161,2]
[406231136,1771640860317,-284.0,0.000161,2]
[406231137,1771640860329,-517.0,0.000161,2]
[406231138,1771640860352,-1064.57,0.000161,2]
[406231139,1771640860361,-450.0,0.00016199,2]
[406231140,1771640860370,-300.0,0.00016199,2]
[406231141,1771640860379,-3185.43,0.000162,5]
[406231142,1771640860408,-10000.01,0.000162,5]
[406231143,1771640863106,-10000.01,0.000162,5]
[406231144,1771640869130,-10000.01,0.000162,5]
[406231145,1771640869227,-10000.01,0.000162,5]
[406231146,1771640872309,-4515.97759996,0.000162,5]
[406231147,1771640887119,308.5201231,0.000125,2]
[406231148,1771640894939,1186.39799025,0.00015717,2]
[406231156,1771641032007,-5000.0,0.00016704,2]
[406231158,1771641032017,-291.0,0.00016704,2]
[406231161,1771641032026,-613.96,0.00016857,2]
[406231164,1771641032036,-406.70404282,0.00016981,2]
[406231167,1771641032045,-300.0,0.00016998,2]
[406231169,1771641032055,-134.45719544,0.00016998,2]
[406231171,1771641032070,-165.54280456,0.00016998,2]
[406231172,1771641032079,-183.0,0.00016998,2]
[406231173,1771641032088,-185.52376357,0.00016999,2]
[406231174,1771641032100,-314.47623643,0.00016999,2]
[406231175,1771641032109,-500.0,0.00016999,2]
[406231176,1771641032119,-500.0,0.00016999,2]
[406231177,1771641032128,-500.0,0.00016999,2]
[406231178,1771641032137,-276.79587992,0.00016999,2]
[406231179,1771641032148,-223.20412008,0.00016999,2]
[406231180,1771641032158,-167.16859923,0.00016999,2]
[406231181,1771641032168,-332.83140077,0.00016999,2]
[406231182,1771641032178,-500.0,0.00016999,2]
[406231183,1771641032187,-49.48784694,0.00016999,2]
[406231184,1771641032199,-450.51215306,0.00016999,2]
[406231185,1771641032208,-392.64784693,0.00016999,2]
[406231186,1771641032219,-107.35215307,0.00016999,2]
[406231187,1771641032230,-202.69784693,0.00016999,2]
[406231188,1771641032242,-297.30215307,0.00016999,2]
[406231189,1771641032252,-500.0,0.00016999,2]
[406231190,1771641032261,-500.0,0.00016999,2]
[406231191,1771641032270,-500.0,0.00016999,2]
[406231192,1771641032280,-500.0,0.00016999,2]
[406231194,1771641032289,-8.38059667,0.00016999,2]
[406231211,1771641038092,-1631.0732029,0.00016981,2]
[406231212,1771641038102,-491.61940333,0.00016999,2]
[406231213,1771641038112,-500.0,0.00016999,2]
[406231214,1771641038121,-500.0,0.00016999,2]
[406231215,1771641038131,-500.0,0.00016999,2]
[406231216,1771641038142,-261.24302849,0.00016999,2]
[406231217,1771641038152,-500.0,0.00016999,2]
[406231218,1771641038162,-500.0,0.00016999,2]
[406231219,1771641038171,-500.0,0.00016999,2]
[406231220,1771641038181,-500.0,0.00016999,2]
[406231221,1771641038191,-500.0,0.00016999,2]
[406231222,1771641038200,-500.0,0.00016999,2]
[406231223,1771641038210,-115.46436528,0.00016999,2]
[406231224,1771641038222,-384.53563472,0.00016999,2]
[406231225,1771641038235,-500.0,0.00016999,2]
[406231226,1771641038244,-500.0,0.00016999,2]
[406231227,1771641038255,-500.0,0.00016999,2]
[406231228,1771641038264,-500.0,0.00016999,2]
[406231229,1771641038274,-500.0,0.00016999,2]
[406231230,1771641038283,-500.0,0.00016999,2]
[406231231,1771641038293,-500.0,0.00016999,2]
[406231232,1771641038303,-500.0,0.00016999,2]
[406231233,1771641038313,-300.0,0.00016999,2]
[406231234,1771641038323,-7505.88896565,0.00017,2]
[406231235,1771641038334,-361416.80778399,0.00017,2]
[406231236,1771641038349,-1997.0,0.00017081,2]
[406231237,1771641038359,-258.09,0.00017096,30]
[406231238,1771641038368,-500.0,0.00017143,2]
[406231239,1771641038378,-1997.0,0.00017202,2]
[406231240,1771641038388,-406.70404281,0.00017586,2]
[406231241,1771641038397,-218.44189035,0.00017598,2]
[406231242,1771641038406,-5000.0,0.000176,2]
[406231243,1771641038416,-600.0,0.000176,6]
[406231244,1771641038425,-1997.0,0.00017673,2]
[406231245,1771641038435,-1300.0,0.000177,6]
[406231246,1771641038444,-166.66,0.00017798,2]
[406231247,1771641038456,-1900.0,0.000178,6]
[406231248,1771641038466,-1004.67257269,0.0001786,2]
[406231249,1771641038475,-493.47361044,0.00017873,2]
[406231250,1771641038485,-501.02670572,0.00017873,2]
[406231251,1771641038495,-693.3919763,0.00017878,2]
[406231252,1771641038504,-405.17,0.00017888,2]
[406231253,1771641038513,-2600.0,0.000179,6]
[406231254,1771641038523,-212.22497024,0.000179,2]
[406231255,1771641038534,-235.59152438,0.000179,2]
[406231256,1771641038544,-1997.0,0.00017917,2]
[406231257,1771641038554,-719.04747942,0.00017933,2]
[406231258,1771641038563,-500.0,0.00017947,2]
[406231259,1771641038573,-297.46778061,0.00017973,2]
[406231260,1771641038582,-164.16786887,0.00017973,2]
[406231261,1771641038592,-500.39813374,0.00017973,2]
[406231262,1771641038601,-745.65223616,0.00017988,2]
[406231263,1771641038610,-539.97806278,0.00017989,2]
[406231264,1771641038620,-151.0,0.00017989,2]
[406231265,1771641038629,-151.0,0.00017989,2]
[406231266,1771641038639,-151.0,0.00017989,2]
[406231267,1771641038649,-151.0,0.00017989,2]
[406231268,1771641038658,-151.0,0.00017989,2]
[406231269,1771641038667,-151.0,0.00017989,2]
[406231270,1771641038677,-151.0,0.00017989,2]
[406231271,1771641038686,-151.0,0.00017989,2]
[406231272,1771641038695,-500.0,0.00017989,2]
[406231273,1771641038704,-151.0,0.00017989,2]
[406231274,1771641038713,-500.0,0.00017989,2]
[406231275,1771641038722,-176.48341704,0.00017989,2]
[406231276,1771641038731,-500.0,0.00017989,2]
[406231277,1771641038740,-500.0,0.00017989,2]
[406231278,1771641038749,-500.0,0.00017989,2]
[406231279,1771641038758,-500.0,0.00017989,2]
[406231280,1771641038767,-500.0,0.00017989,2]
[406231281,1771641038776,-500.0,0.00017989,2]
[406231282,1771641038785,-500.0,0.00017989,2]
[406231283,1771641038794,-500.0,0.00017989,2]
[406231284,1771641038803,-500.0,0.00017989,2]
[406231285,1771641039026,-516.38581212,0.00017989,2]
[406231286,1771641039039,-391.69745777,0.0001799,2]
[406231287,1771641039048,-391.69745777,0.0001799,2]
[406231288,1771641039057,-300.0,0.00017999,2]
[406231289,1771641039067,-666.0,0.00017999,2]
[406231290,1771641039076,-300.0,0.00017999,2]
[406231291,1771641039084,-172.34412063,0.00017999,2]
[406231292,1771641039093,-500.0,0.00017999,2]
[406231293,1771641039103,-236.65932791,0.00017999,2]
[406231294,1771641039112,-430.84063582,0.00017999,2]
[406231295,1771641039121,-500.0,0.00017999,2]
[406231296,1771641039131,-500.0,0.00017999,2]
[406231297,1771641039140,-500.0,0.00017999,2]
[406231298,1771641039149,-500.0,0.00017999,2]
[406231299,1771641039158,-361.37968334,0.00017999,2]
[406231300,1771641039168,-657.7428535,0.00017999,2]
[406231301,1771641039176,-657.7428535,0.00017999,2]
[406231302,1771641039187,-657.7428535,0.00017999,2]
[406231303,1771641039196,-657.7428535,0.00017999,2]
[406231304,1771641039205,-657.7428535,0.00017999,2]
[406231305,1771641039215,-657.7428535,0.00017999,2]
[406231306,1771641039235,-657.7428535,0.00017999,2]
[406231307,1771641039245,-657.7428535,0.00017999,2]
[406231308,1771641039255,-657.7428535,0.00017999,2]
[406231309,1771641039264,-657.7428535,0.00017999,2]
[406231310,1771641039273,-657.7428535,0.00017999,2]
[406231311,1771641039283,-657.7428535,0.00017999,2]
[406231312,1771641039293,-657.7428535,0.00017999,2]
[406231313,1771641039302,-657.7428535,0.00017999,2]
[406231314,1771641039311,-657.7428535,0.00017999,2]
[406231315,1771641039321,-657.7428535,0.00017999,2]
[406231316,1771641039330,-657.7428535,0.00017999,2]
[406231317,1771641039340,-657.7428535,0.00017999,2]
[406231318,1771641039350,-681.66077545,0.00017999,2]
[406231319,1771641039359,-681.66077545,0.00017999,2]
[406231320,1771641039367,-681.66077545,0.00017999,2]
[406231321,1771641039376,-681.66077545,0.00017999,2]
[406231322,1771641039385,-681.66077545,0.00017999,2]
[406231323,1771641039394,-681.66077545,0.00017999,2]
[406231324,1771641039405,-681.66077545,0.00017999,2]
[406231325,1771641039414,-681.66077545,0.00017999,2]
[406231326,1771641039423,-681.66077545,0.00017999,2]
[406231327,1771641039432,-681.66077545,0.00017999,2]
[406231328,1771641039441,-681.66077545,0.00017999,2]
[406231329,1771641039453,-1092819.65112082,0.00018,2]
[406231330,1771641039466,-507.71285999,0.00018,2]
[406231331,1771641039477,-448.03156372,0.00018,2]
[406231332,1771641039489,-476.9799995,0.00018,2]
[406231333,1771641039512,-1317.65489879,0.00018,2]
[406231334,1771641039524,-19448.32808573,0.00018,2]
[406231335,1771641039535,-239181.20046608,0.00018,2]
[406231336,1771641040377,-340.3796,0.00018,2]
[406231337,1771641040390,-1440.85858196,0.00018,2]
[406231338,1771641040645,-845.39777926,0.00018,2]
[406231347,1771641045980,-3405.85,0.00018,2]
[406231348,1771641045992,-602.5070347,0.00018,2]
[406231349,1771641046284,-1759.16991075,0.00018,2]
[406231380,1771641102181,517.0,0.00016,2]